bitfinex-derivatives/quotes_BTCF0:USTF0_20250809
["timestamp","ask_amount","ask_price","bid_price","bid_amount"]
[1754770170700,0.59715635,116660.0,116650.0,0.6177006]
[1754770171101,0.2636832,116660.0,116650.0,0.95117375]
[1754770171400,0.59715635,116660.0,116650.0,0.95117375]
[1754770171603,0.59715635,116660.0,116650.0,0.6177006]
[1754770171803,0.59715635,116660.0,116650.0,0.95117375]
[1754770172503,0.2636832,116660.0,116650.0,0.6177006]
[1754770172692,0.59715635,116660.0,116650.0,0.6177006]
[1754770172897,0.2636832,116660.0,116650.0,0.95117375]
[1754770173202,0.59715635,116660.0,116650.0,0.95117375]
[1754770173401,0.2636832,116660.0,116650.0,0.95117375]
[1754770173604,0.59715635,116660.0,116650.0,0.95117375]
[1754770173905,0.2636832,116660.0,116650.0,0.6177006]
[1754770174103,0.2636832,116660.0,116650.0,0.95117375]
[1754770174306,0.59715635,116660.0,116650.0,0.6177006]
[1754770174805,0.59715635,116660.0,116650.0,0.95117375]
[1754770175204,0.2636832,116660.0,116650.0,0.95117375]
[1754770175406,0.59715635,116660.0,116650.0,0.95117375]
[1754770176703,0.2636832,116660.0,116650.0,0.95117375]
[1754770176906,0.59715635,116660.0,116650.0,0.95117375]
[1754770177705,0.2636832,116660.0,116650.0,0.95117375]
[1754770178103,0.59715635,116660.0,116650.0,0.95117375]
[1754770178504,0.2636832,116660.0,116650.0,0.95117375]
[1754770178704,0.2636832,116660.0,116650.0,0.6177006]
[1754770179000,0.59715635,116660.0,116650.0,0.95117375]
[1754770179907,0.59715635,116660.0,116650.0,0.6177006]
[1754770180108,0.59715635,116660.0,116650.0,0.95117375]
[1754770181108,0.59715635,116660.0,116650.0,0.6177006]
[1754770181304,0.2636832,116660.0,116650.0,0.95117375]
[1754770181506,0.59715635,116660.0,116650.0,0.95117375]
[1754770182008,0.2636832,116660.0,116650.0,0.95117375]
[1754770182309,0.59715635,116660.0,116650.0,0.95117375]
[1754770182497,0.59461635,116660.0,116650.0,0.91764405]
[1754770182805,0.59461635,116660.0,116650.0,0.95470405]
[1754770183110,0.2611432,116660.0,116650.0,0.95470405]
[1754770183309,0.59461635,116660.0,116650.0,0.95470405]
[1754770184305,0.59461635,116660.0,116650.0,0.59390405]
[1754770185215,0.2611432,116660.0,116650.0,0.59390405]
[1754770185404,0.59461635,116660.0,116650.0,0.59390405]
[1754770187312,0.59461635,116660.0,116650.0,0.2604309]
[1754770187509,0.59461635,116660.0,116650.0,0.59390405]
[1754770188003,0.2611432,116660.0,116650.0,0.59390405]
[1754770188411,0.59461635,116660.0,116650.0,0.59390405]
[1754770188611,0.59461635,116660.0,116650.0,0.2604309]
[1754770188814,0.59461635,116660.0,116650.0,0.59390405]
[1754770190116,0.2611432,116660.0,116650.0,0.59390405]
[1754770190317,0.59461635,116660.0,116650.0,0.59390405]
[1754770191114,0.2611432,116660.0,116650.0,0.59390405]
[1754770191317,0.59461635,116660.0,116650.0,0.59390405]
[1754770191818,0.2611432,116660.0,116650.0,0.59390405]
[1754770192009,0.59461635,116660.0,116650.0,0.59390405]
[1754770192616,0.59461635,116660.0,116650.0,0.2604309]
[1754770192815,0.59461635,116660.0,116650.0,0.59390405]
[1754770193217,0.2611432,116660.0,116650.0,0.59390405]
[1754770193517,0.59461635,116660.0,116650.0,0.59390405]
[1754770194117,0.59461635,116660.0,116650.0,0.2604309]
[1754770194315,0.8884495,116660.0,116640.0,0.6179534]
[1754770194517,0.59362385,116650.0,116640.0,0.95471095]
[1754770195518,0.59362385,116650.0,116640.0,0.95571095]
[1754770195817,0.59362385,116650.0,116640.0,0.6222378]
[1754770196017,0.59362385,116650.0,116640.0,0.95571095]
[1754770198021,0.59362385,116650.0,116640.0,0.95671095]
[1754770198216,0.59362385,116650.0,116640.0,0.6232378]
[1754770198416,0.59362385,116650.0,116640.0,0.95671095]
[1754770199219,0.2601507,116650.0,116640.0,0.95671095]
[1754770199422,0.59362385,116650.0,116640.0,0.95671095]
[1754770199621,0.2601507,116650.0,116640.0,0.95671095]
[1754770199824,0.59362385,116650.0,116640.0,0.95671095]
[1754770200821,0.59362385,116650.0,116640.0,0.6232378]
[1754770201022,0.59362385,116650.0,116640.0,0.95671095]
[1754770201524,0.59362385,116650.0,116640.0,0.6232378]
[1754770201823,0.59362385,116650.0,116640.0,0.95671095]
[1754770202024,0.59362385,116650.0,116640.0,0.59591095]
[1754770202327,0.59362385,116650.0,116640.0,0.6232378]
[1754770202526,0.59362385,116650.0,116640.0,0.95671095]
[1754770202825,0.2601507,116650.0,116640.0,0.95671095]
[1754770203123,0.59362385,116650.0,116640.0,0.95671095]
[1754770203326,0.2601507,116650.0,116640.0,0.95671095]
[1754770203523,0.2601507,116650.0,116640.0,0.6232378]
[1754770203726,0.59362385,116650.0,116640.0,0.95671095]
[1754770203926,0.59362385,116650.0,116640.0,0.6232378]
[1754770204128,0.59362385,116650.0,116640.0,0.95671095]
[1754770204426,0.59362385,116650.0,116640.0,0.6232378]
[1754770204828,0.59362385,116650.0,116640.0,0.95671095]
[1754770205521,0.59362385,116650.0,116640.0,0.6232378]
[1754770205826,0.59362385,116650.0,116640.0,0.95671095]
[1754770206223,1.41454385,116650.0,116640.0,0.6232378]
[1754770206627,1.41454385,116650.0,116640.0,0.95671095]
[1754770207126,1.41454385,116650.0,116640.0,0.6232378]
[1754770207330,1.41454385,116650.0,116640.0,0.95671095]
[1754770207724,1.41554385,116650.0,116640.0,0.95571095]
[1754770208228,1.41554385,116650.0,116640.0,0.95471095]
[1754770209930,1.41554385,116650.0,116640.0,0.6212378]
[1754770210124,1.41554385,116650.0,116640.0,0.95471095]
[1754770210823,1.41554385,116650.0,116640.0,0.6212378]
[1754770211224,1.41554385,116650.0,116640.0,0.50494]
[1754770211429,1.0820707,116650.0,116640.0,0.2589381]
[1754770211632,1.41554385,116650.0,116640.0,0.59241125]
[1754770213030,1.41554385,116650.0,116640.0,0.2589381]
[1754770213230,1.41554385,116650.0,116640.0,0.59241125]
[1754770213729,1.0820707,116650.0,116640.0,0.59241125]
[1754770213929,1.41554385,116650.0,116640.0,0.59241125]
[1754770214431,1.0820707,116650.0,116640.0,0.59241125]
[1754770214730,1.41554385,116650.0,116640.0,0.59241125]
[1754770215032,1.41554385,116650.0,116640.0,0.2589381]
[1754770215530,1.41554385,116650.0,116640.0,0.10925]
[1754770215730,1.41554385,116650.0,116640.0,0.17391]
[1754770216426,1.41554385,116650.0,116640.0,0.259628]
[1754770216628,1.0820707,116650.0,116640.0,0.259628]
[1754770216827,1.0820707,116650.0,116640.0,0.59310115]
[1754770217031,1.41554385,116650.0,116640.0,0.259628]
[1754770217233,1.41554385,116650.0,116640.0,0.59310115]
[1754770219533,1.41554385,116650.0,116640.0,0.50738315]
[1754770219839,1.0820707,116650.0,116640.0,0.50738315]
[1754770220137,1.41554385,116650.0,116640.0,0.50738315]
[1754770220330,1.0820707,116650.0,116640.0,0.17391]
[1754770220528,1.41554385,116650.0,116640.0,0.50738315]
[1754770220833,1.41554385,116650.0,116640.0,0.59310135]
[1754770221139,1.0820707,116650.0,116640.0,0.59310135]
[1754770221338,1.41554385,116650.0,116640.0,0.50738315]
[1754770222242,1.41554385,116650.0,116640.0,0.17391]
[1754770222444,1.41554385,116650.0,116640.0,0.50738315]
[1754770222743,1.41554385,116650.0,116640.0,0.17391]
[1754770222947,1.41554385,116650.0,116640.0,0.50738315]
[1754770223144,1.41554385,116650.0,116640.0,0.17391]
[1754770223340,1.41554385,116650.0,116640.0,0.50738315]
[1754770223542,1.41554385,116650.0,116640.0,0.59310135]
[1754770224445,1.41554385,116650.0,116640.0,0.50738315]
[1754770224745,1.41554385,116650.0,116640.0,0.59310135]
[1754770225347,0.59462385,116650.0,116640.0,0.59310135]
[1754770225650,1.41258385,116650.0,116640.0,0.59310135]
[1754770226247,1.0791107,116650.0,116640.0,0.59310135]
[1754770226648,1.41258385,116650.0,116640.0,0.59310135]
[1754770227247,1.41258385,116650.0,116640.0,0.2596282]
[1754770227442,1.41258385,116650.0,116640.0,0.59310135]
[1754770228748,1.0791107,116650.0,116640.0,0.59310135]
[1754770228944,0.2611507,116650.0,116640.0,0.59310135]
[1754770229249,0.59462385,116650.0,116640.0,0.59310135]
[1754770229756,0.2611507,116650.0,116640.0,0.59310135]
[1754770229940,0.2611507,116650.0,116640.0,0.2596282]
[1754770230140,0.2591507,116650.0,116640.0,0.2596282]
[1754770230337,0.2591507,116650.0,116640.0,0.9265745]
[1754770230540,0.2591507,116650.0,116640.0,0.2596282]
[1754770230950,0.2591507,116650.0,116640.0,0.9265745]
[1754770231145,0.2591507,116650.0,116640.0,0.2596282]
[1754770231345,0.2591507,116650.0,116640.0,0.9265745]
[1754770232641,0.1322307,116650.0,116640.0,0.9265745]
[1754770233050,0.1322307,116650.0,116640.0,0.2596282]
[1754770233353,0.2606407,116650.0,116640.0,0.2596282]
[1754770233546,0.2606407,116650.0,116640.0,0.9265745]
[1754770233753,0.2606407,116650.0,116640.0,0.2596282]
[1754770234352,0.2606407,116650.0,116640.0,0.9265745]
[1754770234853,0.2606407,116650.0,116640.0,0.2596282]
[1754770235053,0.2606407,116650.0,116640.0,0.9265745]
[1754770235254,0.2606407,116650.0,116640.0,0.2596282]
[1754770235452,0.2606407,116650.0,116640.0,0.9265745]
[1754770235654,0.1322307,116650.0,116640.0,0.2596282]
[1754770235851,0.001,116650.0,116640.0,0.95390135]
[1754770236051,0.36850084,116670.0,116660.0,0.2497533]
[1754770236247,0.04295,116670.0,116660.0,1.2774996]
[1754770236450,0.7754753,116690.0,116670.0,0.0996102]
[1754770236646,0.7754753,116690.0,116670.0,0.5321862]
[1754770236647,0.038,116680.0,116670.0,0.5321862]
[1754770236851,0.038,116680.0,116670.0,0.64018379]
[1754770237255,0.038,116680.0,116670.0,0.5321862]
[1754770237957,0.038,116680.0,116670.0,1.1991325]
[1754770238252,0.0665,116690.0,116670.0,1.2848285]
[1754770238454,0.042,116690.0,116680.0,1.113435]
[1754770238654,0.004,116690.0,116680.0,1.44690815]
[1754770238852,0.004,116690.0,116680.0,0.4464887]
[1754770238853,0.042,116690.0,116680.0,0.4464887]
[1754770239053,0.042,116690.0,116680.0,1.44690815]
[1754770239255,0.038,116690.0,116680.0,1.113435]
[1754770239453,0.038,116700.0,116690.0,0.1713556]
[1754770239654,0.038,116700.0,116690.0,0.95130655]
[1754770239951,0.16704,116700.0,116690.0,1.4893534]
[1754770240350,0.2527139,116700.0,116690.0,1.4893534]
[1754770240659,0.10473,116700.0,116690.0,1.4893534]
[1754770240961,0.043,116700.0,116690.0,1.93378132]
[1754770241253,0.043,116700.0,116690.0,1.4893534]
[1754770241660,0.1286739,116700.0,116690.0,1.93378132]
[1754770241960,0.043,116700.0,116690.0,1.4893534]
[1754770242660,0.1286739,116700.0,116690.0,0.6178334]
[1754770242959,0.2577139,116700.0,116690.0,1.06226132]
[1754770243162,0.2577139,116700.0,116690.0,0.6178334]
[1754770244258,0.2577139,116700.0,116690.0,1.06326132]
[1754770244449,0.2577139,116700.0,116690.0,0.6188334]
[1754770244652,0.17204,116700.0,116690.0,1.06326132]
[1754770245262,0.17204,116700.0,116690.0,1.06226132]
[1754770245459,0.17204,116700.0,116690.0,0.6178334]
[1754770246058,0.17204,116700.0,116690.0,1.06226132]
[1754770246252,0.17204,116700.0,116690.0,0.6178334]
[1754770246657,0.17204,116700.0,116690.0,1.06226132]
[1754770247561,0.039,116700.0,116690.0,1.06226132]
[1754770247861,0.039,116700.0,116690.0,0.6178334]
[1754770248159,0.038,116710.0,116700.0,0.2570216]
[1754770248358,0.038,116710.0,116700.0,1.06224952]
[1754770249063,0.038,116710.0,116700.0,0.6178216]
[1754770249258,0.038,116710.0,116700.0,1.06224952]
[1754770249663,0.038,116710.0,116700.0,0.6178216]
[1754770250459,0.038,116710.0,116700.0,1.06224952]
[1754770251173,0.038,116710.0,116700.0,0.6178216]
[1754770251358,0.16704,116710.0,116700.0,0.6178216]
[1754770251558,0.2527068,116710.0,116700.0,0.6178216]
[1754770251768,0.16704,116710.0,116700.0,1.06224952]
[1754770251974,0.16704,116710.0,116700.0,0.6178216]
[1754770252271,0.69713472,116710.0,116700.0,1.5293816]
[1754770252464,1.05793472,116710.0,116700.0,0.0856734]
[1754770252968,0.6135068,116710.0,116700.0,0.0856734]
[1754770253359,1.05793472,116710.0,116700.0,0.0856734]
[1754770253560,0.6135068,116710.0,116700.0,0.0856734]
[1754770253761,1.05793472,116710.0,116700.0,0.0856734]
[1754770255971,0.252714,116700.0,116690.0,0.4464778]
[1754770256173,0.69714192,116700.0,116690.0,0.0856778]
[1754770256374,0.252714,116700.0,116690.0,0.0856778]
[1754770257370,0.252714,116700.0,116690.0,0.0866778]
[1754770257774,0.613514,116700.0,116690.0,0.0866778]
[1754770258361,0.613514,116700.0,116690.0,0.0876778]
[1754770259770,0.69714192,116700.0,116690.0,0.0876778]
[1754770259974,0.252714,116700.0,116690.0,0.0876778]
[1754770260171,0.613514,116700.0,116690.0,0.0876778]
[1754770260572,1.05794192,116700.0,116690.0,0.002]
[1754770261572,1.05794192,116700.0,116670.0,0.18016428]
[1754770261573,0.1524188,116680.0,116670.0,0.18016428]
[1754770261778,0.69715672,116680.0,116670.0,0.1713869]
[1754770262072,0.1950261,116670.0,116660.0,1.1687009]
[1754770262378,0.2527361,116670.0,116660.0,0.2571009]
[1754770262581,0.2527361,116670.0,116660.0,0.70152882]
[1754770263476,0.2527361,116670.0,116660.0,0.2571009]
[1754770263673,0.2527361,116670.0,116660.0,0.71001401]
[1754770263977,0.2527361,116670.0,116660.0,0.26558609]
[1754770264182,0.2527361,116670.0,116660.0,0.71001401]
[1754770264872,0.2527361,116670.0,116660.0,0.26558609]
[1754770265076,0.2527361,116670.0,116660.0,0.28857609]
[1754770265274,0.2527361,116670.0,116660.0,0.73300401]
[1754770265581,0.2527361,116670.0,116660.0,0.28857609]
[1754770265772,0.2527361,116670.0,116660.0,0.27211609]
[1754770266079,0.2576034,116660.0,116650.0,0.0857086]
[1754770266270,0.2576034,116660.0,116650.0,0.0998586]
[1754770266471,0.2576034,116660.0,116650.0,0.1086986]
[1754770266872,0.2576034,116660.0,116650.0,0.55312652]
[1754770267076,0.2576034,116660.0,116650.0,0.1086986]
[1754770267467,0.2576034,116660.0,116650.0,0.0904686]
[1754770268275,0.2576034,116660.0,116650.0,0.0965486]
[1754770268677,0.2576034,116660.0,116650.0,0.0985486]
[1754770269177,0.2576034,116660.0,116650.0,0.0975486]
[1754770269372,0.2576034,116660.0,116650.0,0.0965486]
[1754770269877,0.2576034,116660.0,116650.0,0.1106986]
[1754770271572,0.70203132,116660.0,116650.0,0.002]
[1754770271879,1.06283132,116660.0,116650.0,0.0877108]
[1754770272074,0.6184034,116660.0,116650.0,0.0877108]
[1754770272279,1.06283132,116660.0,116650.0,0.0877108]
[1754770272674,1.06283132,116660.0,116650.0,0.0924708]
[1754770272875,0.6184034,116660.0,116650.0,0.0965508]
[1754770273271,1.06283132,116660.0,116650.0,0.0877108]
[1754770273480,0.6184034,116660.0,116650.0,0.0877108]
[1754770274182,1.06283132,116660.0,116650.0,0.0877108]
[1754770274783,1.06483132,116660.0,116650.0,0.0914708]
[1754770274976,0.6214034,116660.0,116650.0,0.0904708]
[1754770275279,1.06583132,116660.0,116650.0,0.0904708]
[1754770275681,0.6204034,116660.0,116650.0,0.0904708]
[1754770275882,1.06483132,116660.0,116650.0,0.0904708]
[1754770276788,0.6204034,116660.0,116650.0,0.0904708]
[1754770277598,0.2576108,116650.0,116640.0,0.37434989]
[1754770277799,0.2576108,116650.0,116640.0,0.81877781]
[1754770278099,0.2576108,116650.0,116640.0,0.73306211]
[1754770278600,0.2576108,116650.0,116640.0,0.73406211]
[1754770278797,0.2576108,116650.0,116640.0,0.73506211]
[1754770280088,0.2576108,116650.0,116640.0,0.29063419]
[1754770280595,0.2576108,116650.0,116640.0,0.2821347]
[1754770280802,0.2576108,116650.0,116640.0,0.72656262]
[1754770281096,0.70203872,116650.0,116640.0,0.0877181]
[1754770281500,0.70203872,116650.0,116640.0,0.0924781]
[1754770281702,0.70203872,116650.0,116640.0,0.0959181]
[1754770282099,0.2576108,116650.0,116640.0,0.0959181]
[1754770282690,0.0857181,116640.0,116630.0,0.0857255]
[1754770282894,0.7898681,116640.0,116630.0,0.46382792]
[1754770283203,0.0857328,116620.0,116610.0,0.47284682]
[1754770283413,0.2576328,116620.0,116610.0,0.12099702]
[1754770283706,0.2576328,116620.0,116610.0,0.56542494]
[1754770283906,0.2576328,116620.0,116610.0,0.56944494]
[1754770284405,0.2576328,116620.0,116610.0,0.12501702]
[1754770284710,0.2576328,116620.0,116610.0,0.56944494]
[1754770285001,0.2576328,116620.0,116610.0,0.93124494]
[1754770285203,0.2576328,116620.0,116610.0,0.57044494]
[1754770285402,0.2576328,116620.0,116610.0,0.93324494]
[1754770286209,0.2576328,116620.0,116610.0,0.48881702]
[1754770286508,0.2576328,116620.0,116610.0,0.93324494]
[1754770287203,0.1206328,116620.0,116610.0,0.93324494]
[1754770288306,0.1206328,116620.0,116610.0,0.48881702]
[1754770288699,0.2576328,116620.0,116610.0,0.93324494]
[1754770290606,0.2576328,116620.0,116610.0,0.48881702]
[1754770290806,0.2576328,116620.0,116610.0,0.93324494]
[1754770291706,0.1206328,116620.0,116610.0,0.93324494]
[1754770292107,0.1206328,116620.0,116610.0,0.48881702]
[1754770292503,0.1206328,116620.0,116610.0,0.93324494]
[1754770292703,0.1555528,116620.0,116610.0,0.93324494]
[1754770292909,0.2576328,116620.0,116610.0,0.48881702]
[1754770293105,0.2576328,116620.0,116610.0,0.93324494]
[1754770293505,0.2576328,116620.0,116610.0,0.48881702]
[1754770294403,0.2576328,116620.0,116610.0,0.57244494]
[1754770295207,0.2263528,116620.0,116610.0,0.12801702]
[1754770295514,0.2565428,116620.0,116610.0,0.12801702]
[1754770295709,0.2565428,116620.0,116610.0,0.57244494]
[1754770296309,0.2565428,116620.0,116610.0,0.12801702]
[1754770296513,0.2565428,116620.0,116610.0,0.57244494]
[1754770299816,0.2565428,116620.0,116610.0,0.93324494]
[1754770300309,0.2565428,116620.0,116610.0,0.48881702]
[1754770300517,0.2565428,116620.0,116610.0,0.93324494]
[1754770300706,0.1206328,116620.0,116610.0,0.93324494]
[1754770301112,0.1206328,116620.0,116610.0,0.48881702]
[1754770301314,0.1555428,116620.0,116610.0,0.93324494]
[1754770302719,0.1821628,116620.0,116610.0,1.15628132]
[1754770303018,0.2572828,116620.0,116610.0,1.15628132]
[1754770303411,0.2572828,116620.0,116610.0,0.48881702]
[1754770303614,0.2572828,116620.0,116610.0,1.15628132]
[1754770304120,0.2572828,116620.0,116610.0,0.48881702]
[1754770304322,0.2572828,116620.0,116610.0,0.82254917]
[1754770305223,0.2572828,116620.0,116610.0,0.12801702]
[1754770305520,0.2572828,116620.0,116610.0,0.46174917]
[1754770305727,0.2572828,116620.0,116610.0,0.12801702]
[1754770306023,0.2572828,116620.0,116610.0,0.46174917]
[1754770307322,0.2572828,116620.0,116610.0,0.12801702]
[1754770307620,0.2572828,116620.0,116610.0,0.46174917]
[1754770308225,0.2572828,116620.0,116610.0,0.82254917]
[1754770309213,0.2572828,116620.0,116610.0,1.15628132]
[1754770309820,0.6180828,116620.0,116610.0,0.02287682]
[1754770310026,0.6180828,116620.0,116610.0,0.01416067]
[1754770310217,0.6180828,116620.0,116610.0,0.09990107]
[1754770310417,0.6180828,116620.0,116610.0,0.11662107]
[1754770310721,1.2855471,116620.0,116610.0,0.45035322]
[1754770311113,0.95181495,116620.0,116610.0,0.45035322]
[1754770311517,0.95281495,116620.0,116610.0,0.11562107]
[1754770311727,0.6190828,116620.0,116610.0,0.44935322]
[1754770311918,0.95281495,116620.0,116610.0,0.11362107]
[1754770312114,0.95381495,116620.0,116610.0,0.44735322]
[1754770312826,0.6200828,116620.0,116610.0,0.44735322]
[1754770313217,0.95381495,116620.0,116610.0,0.44735322]
[1754770314519,0.6200828,116620.0,116610.0,1.38291322]
[1754770314721,0.59301495,116620.0,116610.0,1.38291322]
[1754770315230,0.6200828,116620.0,116610.0,1.04918107]
[1754770315434,0.95381495,116620.0,116610.0,1.38291322]
[1754770315826,0.59301495,116620.0,116610.0,1.38291322]
[1754770317121,0.59301495,116620.0,116610.0,1.04918107]
[1754770317625,0.59301495,116620.0,116610.0,1.38291322]
[1754770317828,0.95381495,116620.0,116610.0,1.38291322]
[1754770318328,0.95381495,116620.0,116610.0,1.04918107]
[1754770318524,0.95381495,116620.0,116610.0,1.38291322]
[1754770318726,0.6200828,116620.0,116610.0,1.38291322]
[1754770319023,0.95381495,116620.0,116610.0,1.38291322]
[1754770319214,0.002,116620.0,116610.0,2.07744537]
[1754770319414,0.04149,116620.0,116610.0,2.07744537]
[1754770320022,0.04149,116620.0,116610.0,1.40998107]
[1754770320228,0.04149,116620.0,116610.0,2.07744537]
[1754770320532,0.04149,116620.0,116610.0,2.18544852]
[1754770320722,0.198773,116620.0,116610.0,1.51798422]
[1754770320923,0.263873,116620.0,116610.0,1.85168982]
[1754770321739,0.174943,116620.0,116610.0,1.85168982]
[1754770322229,0.127223,116620.0,116610.0,1.51798422]
[1754770322431,0.127223,116620.0,116610.0,1.85168982]
[1754770322621,0.127223,116620.0,116610.0,1.74368667]
[1754770322822,0.087733,116620.0,116610.0,1.74368667]
[1754770323026,0.127223,116620.0,116610.0,2.07739227]
[1754770323222,0.127223,116620.0,116610.0,2.18537647]
[1754770323421,0.127223,116620.0,116610.0,1.74368667]
[1754770323831,0.04149,116620.0,116610.0,1.74368667]
[1754770324825,0.002,116620.0,116610.0,2.07739227]
[1754770325030,0.03949,116630.0,116620.0,0.096213]
[1754770325234,0.3620382,116640.0,116630.0,0.0921756]
[1754770325424,0.3472361,116650.0,116640.0,0.0961983]
[1754770325625,0.3472361,116650.0,116640.0,0.4299039]
[1754770325825,0.3472361,116650.0,116640.0,0.7907039]
[1754770326731,0.1255079,116650.0,116640.0,0.7907039]
[1754770327030,0.1255079,116650.0,116640.0,0.4569983]
[1754770327223,0.1255079,116650.0,116640.0,0.7907039]
[1754770327420,0.1610879,116650.0,116640.0,0.7907039]
[1754770328220,0.1620879,116650.0,116640.0,0.7907039]
[1754770328528,0.2625179,116650.0,116640.0,0.4569983]
[1754770328730,0.2625179,116650.0,116640.0,0.89866732]
[1754770328925,0.2625179,116650.0,116640.0,0.56496172]
[1754770329121,0.2625179,116650.0,116640.0,0.4569983]
[1754770329729,0.2625179,116650.0,116640.0,1.7095439]
[1754770330335,0.0857183,116640.0,116630.0,0.3608]
[1754770330631,0.6223183,116640.0,116630.0,0.1714475]
[1754770330836,0.9560239,116640.0,116630.0,0.1714475]
[1754770331529,0.6223183,116640.0,116630.0,0.1829275]
[1754770331732,0.6223183,116640.0,116630.0,0.1839275]
[1754770334739,0.6223183,116640.0,116630.0,0.5176331]
[1754770335038,0.1949383,116640.0,116630.0,0.8784331]
[1754770335245,0.2305183,116640.0,116630.0,0.5176331]
[1754770335540,0.2615183,116640.0,116630.0,0.1839275]
[1754770335741,0.2615183,116640.0,116630.0,0.5176331]
[1754770336941,0.2615183,116640.0,116630.0,0.8784331]
[1754770338032,0.2615183,116640.0,116630.0,0.5447275]
[1754770338233,0.2615183,116640.0,116630.0,0.8784331]
[1754770341137,0.2615183,116640.0,116630.0,0.5176331]
[1754770343260,0.2615183,116640.0,116630.0,0.8784331]
[1754770343454,0.2615183,116640.0,116630.0,0.5176331]
[1754770344154,0.2615183,116640.0,116630.0,0.98639652]
[1754770344355,0.2615183,116640.0,116630.0,0.65269092]
[1754770344660,0.2615183,116640.0,116630.0,0.98639652]
[1754770346555,0.2615183,116640.0,116630.0,0.65269092]
[1754770346750,0.2615183,116640.0,116630.0,0.98639652]
[1754770349452,0.03979,116640.0,116630.0,0.98639652]
[1754770349860,0.03979,116640.0,116630.0,0.8784331]
[1754770350858,0.3237215,116650.0,116630.0,0.9622979]
[1754770350859,0.1714257,116650.0,116630.0,0.9622979]
[1754770351059,0.1714257,116650.0,116640.0,1.45093994]
[1754770351060,0.1255025,116650.0,116640.0,1.45093994]
[1754770351559,0.1255025,116650.0,116640.0,1.81173994]
[1754770352569,0.1620825,116650.0,116640.0,1.81173994]
[1754770353069,0.6233125,116650.0,116640.0,0.10789604]
[1754770353361,0.6233125,116650.0,116640.0,0.19361434]
[1754770353667,0.2615183,116640.0,116630.0,0.6211403]
[1754770353860,0.2615183,116640.0,116630.0,0.6201403]
[1754770354056,0.5952239,116640.0,116630.0,0.6220003]
[1754770354458,0.9560239,116640.0,116630.0,0.2593403]
[1754770354765,0.6223183,116640.0,116630.0,0.2593403]
[1754770354966,0.9560239,116640.0,116630.0,0.2593403]
[1754770355166,0.6223183,116640.0,116630.0,0.1736163]
[1754770355364,0.9560239,116640.0,116630.0,0.1736163]
[1754770355562,0.6223183,116640.0,116630.0,0.1736163]
[1754770355762,0.9560239,116640.0,116630.0,0.1736163]
[1754770356363,0.9560239,116640.0,116630.0,0.0857223]
[1754770357062,0.9560239,116640.0,116630.0,0.0867223]
[1754770357263,0.9560239,116640.0,116630.0,0.001]
[1754770358359,0.9560239,116640.0,116630.0,0.10889604]
[1754770358761,0.9570239,116640.0,116630.0,0.10789604]
[1754770359066,0.9580239,116640.0,116630.0,0.10789604]
[1754770360161,0.6243183,116640.0,116630.0,0.10789604]
[1754770360370,0.2510955,116630.0,116620.0,0.36595804]
[1754770360575,0.2510955,116630.0,116620.0,0.28022724]
[1754770361564,0.2510955,116630.0,116620.0,0.28122724]
[1754770361961,0.2510955,116630.0,116620.0,0.0876004]
[1754770362166,0.6118955,116630.0,116620.0,0.0876004]
[1754770363270,0.6118955,116630.0,116620.0,0.0867304]
[1754770363969,0.9456011,116630.0,116620.0,1.0212504]
[1754770364165,0.6118955,116630.0,116620.0,1.0212504]
[1754770364370,0.9456011,116630.0,116620.0,1.0212504]
[1754770365170,0.9456011,116630.0,116620.0,1.0202504]
[1754770365371,0.9466011,116630.0,116620.0,1.0202504]
[1754770365964,0.6138955,116630.0,116620.0,1.0202504]
[1754770366272,0.9476011,116630.0,116620.0,1.0202504]
[1754770366663,0.9476011,116630.0,116620.0,1.0211204]
[1754770366967,0.6138955,116630.0,116620.0,1.0218704]
[1754770367170,0.03962,116630.0,116620.0,1.716376]
[1754770367864,0.16737,116630.0,116620.0,1.716376]
[1754770368266,0.2520956,116630.0,116620.0,1.716376]
[1754770368471,0.16737,116630.0,116620.0,1.716376]
[1754770368867,0.16637,116630.0,116620.0,1.716376]
[1754770369278,0.16737,116630.0,116620.0,1.716376]
[1754770369470,0.16637,116630.0,116620.0,1.716376]
[1754770369774,0.16737,116630.0,116620.0,1.3826704]
[1754770369981,0.2530956,116630.0,116620.0,1.82427204]
[1754770370477,0.2530956,116630.0,116620.0,1.49056644]
[1754770370671,0.2530956,116630.0,116620.0,1.82427204]
[1754770371369,0.2530956,116630.0,116620.0,1.49056644]
[1754770371571,0.2530956,116630.0,116620.0,1.82427204]
[1754770372475,0.2530956,116630.0,116620.0,1.49056644]
[1754770372777,0.2530956,116630.0,116620.0,1.82427204]
[1754770374976,0.2530956,116630.0,116620.0,1.49056644]
[1754770375176,0.2530956,116630.0,116620.0,1.82427204]
[1754770376481,0.16737,116630.0,116620.0,1.82427204]
[1754770378081,0.13902,116630.0,116620.0,1.82427204]
[1754770380884,0.2247456,116630.0,116620.0,1.82427204]
[1754770381079,0.13902,116630.0,116620.0,1.49056644]
[1754770381285,0.13902,116630.0,116620.0,1.82427204]
[1754770381477,0.2247456,116630.0,116620.0,1.49056644]
[1754770381879,0.2247456,116630.0,116620.0,1.82427204]
[1754770382484,0.2247456,116630.0,116620.0,1.49056644]
[1754770382685,0.2247456,116630.0,116620.0,1.82427204]
[1754770382884,0.2247456,116630.0,116620.0,1.49056644]
[1754770383086,0.2247456,116630.0,116620.0,1.82427204]
[1754770383291,0.2530956,116630.0,116620.0,1.82427204]
[1754770383590,0.2530956,116630.0,116620.0,1.716376]
[1754770384490,0.2530956,116630.0,116620.0,1.82438646]
[1754770387191,0.2530956,116630.0,116620.0,1.49068086]
[1754770387395,0.2530956,116630.0,116620.0,1.82438646]
[1754770388891,0.2530956,116630.0,116620.0,1.716376]
[1754770390290,0.2530956,116630.0,116620.0,1.3826704]
[1754770390490,0.2530956,116630.0,116620.0,1.716376]
[1754770394695,0.2530956,116630.0,116620.0,2.0500545]
[1754770395491,0.2530956,116630.0,116620.0,1.3826704]
[1754770395697,0.2530956,116630.0,116620.0,2.0500545]
[1754770396598,0.58678765,116630.0,116620.0,1.1155345]
[1754770396798,0.58678765,116630.0,116620.0,2.0202945]
[1754770397500,0.2530956,116630.0,116620.0,2.0202945]
[1754770397691,0.58678765,116630.0,116620.0,2.0202945]
[1754770398097,0.58678765,116630.0,116620.0,1.1155345]
[1754770398293,0.58678765,116630.0,116620.0,2.0187345]
[1754770398699,0.58678765,116630.0,116620.0,1.6579345]
[1754770398899,0.58678765,116630.0,116620.0,2.0187345]
[1754770399096,0.58678765,116630.0,116620.0,1.6579345]
[1754770399601,0.58678765,116630.0,116620.0,2.0187345]
[1754770400799,0.58678765,116630.0,116620.0,1.6579345]
[1754770401000,0.58678765,116630.0,116620.0,2.0187345]
[1754770402901,0.2530956,116630.0,116620.0,2.0187345]
[1754770403200,0.58678765,116630.0,116620.0,2.0187345]
[1754770404101,0.2530956,116630.0,116620.0,2.0187345]
[1754770404398,0.58678765,116630.0,116620.0,0.78022105]
[1754770404601,0.58678765,116630.0,116620.0,1.67582105]